bitfinex-derivatives/quotes_SOLF0:USTF0_20250514
["timestamp","ask_amount","ask_price","bid_price","bid_amount"]
[1747263667889,5.6778,176.08,176.04,56.66]
[1747263668292,5.6778,176.08,176.06,5.6783]
[1747263668793,56.64,176.11,176.06,5.6783]
[1747263668986,56.64,176.11,176.05,5.6786]
[1747263669186,5.678,176.08,176.05,5.6786]
[1747263670894,5.678,176.08,176.06,5.6783]
[1747263671194,5.6775,176.09,176.06,5.6783]
[1747263671993,5.6778,176.08,176.05,5.6786]
[1747263672794,5.6781,176.07,176.05,5.6786]
[1747263673095,56.64,176.11,176.04,56.66]
[1747263673293,5.6787,176.05,176.04,56.66]
[1747263673598,56.64,176.07,176.01,56.66]
[1747263673993,5.6797,176.02,176.01,56.66]
[1747263676392,56.62,176.03,175.98,56.66]
[1747263676793,56.62,176.03,175.95,56.66]
[1747263676992,5.6816,175.96,175.95,56.66]
[1747263677397,113.28,176.03,175.95,56.66]
[1747263678097,5.6812,175.98,175.95,56.66]
[1747263678398,5.6812,175.98,175.95,62.342]
[1747263679402,5.6812,175.98,175.96,5.6816]
[1747263679597,113.28,176.03,175.96,5.6816]
[1747263679901,5.6808,175.99,175.96,5.6816]
[1747263680202,5.6808,175.99,175.97,5.6813]
[1747263681607,5.6811,175.98,175.95,56.66]
[1747263682302,56.64,175.98,175.95,62.3418]
[1747263682697,5.6813,175.97,175.95,62.3418]
[1747263683203,56.64,175.98,175.92,56.62]
[1747263683404,119.71618841,175.98,175.88,58.4798]
[1747263684007,5.6826,175.93,175.88,58.4798]
[1747263684407,5.6831,175.92,175.88,58.4798]
[1747263684596,56.64,175.94,175.88,58.4798]
[1747263685300,56.64,175.94,175.88,56.62]
[1747263686003,5.6834,175.91,175.88,62.304]
[1747263688509,5.6834,175.91,175.88,56.62]
[1747263689209,5.683,175.92,175.89,5.6839]
[1747263689410,8.41408841,175.98,175.88,56.62]
[1747263689611,56.64,175.96,175.88,56.62]
[1747263689808,56.64,175.96,175.88,113.26]
[1747263690415,5.6822,175.95,175.92,5.6828]
[1747263691405,5.6824,175.94,175.91,5.6831]
[1747263691910,5.6824,175.94,175.88,113.26]
[1747263692110,5.6822,175.95,175.92,5.6829]
[1747263693006,62.3217,175.96,175.88,113.26]
[1747263693209,56.64,175.98,175.88,113.26]
[1747263693412,56.64,175.98,175.89,5.6258]
[1747263693713,56.64,176.0,175.89,5.6258]
[1747263693912,5.6809,175.99,175.9,6.45618841]
[1747263694411,5.6811,175.98,175.9,6.45618841]
[1747263694909,5.6813,175.97,175.95,5.6818]
[1747263695113,56.64,176.0,175.95,56.64]
[1747263695709,5.6819,175.96,175.95,56.64]
[1747263696210,56.64,176.0,175.92,56.64]
[1747263696414,56.64,176.0,175.92,62.3229]
[1747263697414,5.6822,175.95,175.92,62.3229]
[1747263700620,5.6822,175.95,175.93,5.6826]
[1747263701122,10.45618841,176.01,175.95,5.6817]
[1747263701421,56.64,176.0,175.92,56.64]
[1747263701922,5.6809,175.99,175.96,5.6815]
[1747263702627,5.6804,176.0,175.97,5.6812]
[1747263702826,60.64,176.01,175.92,113.28]
[1747263703025,4.0,176.01,175.92,113.28]
[1747263703221,5.6804,176.0,175.92,113.28]
[1747263703524,56.64,176.06,175.93,6.45618841]
[1747263703924,5.6797,176.03,176.0,5.6803]
[1747263705424,56.64,176.06,176.0,5.6803]
[1747263705630,5.6798,176.02,175.99,62.3205]
[1747263705930,5.6798,176.02,175.99,56.64]
[1747263706930,5.6798,176.02,175.99,62.3206]
[1747263707132,56.62,176.05,175.99,56.64]
[1747263707530,5.6792,176.04,176.01,5.6798]
[1747263710830,4.0,176.07,175.99,56.64]
[1747263711433,4.0,176.07,176.05,5.6785]
[1747263712326,5.678,176.08,176.05,5.6785]
[1747263712523,5.6781,176.07,176.04,5.679]
[1747263712832,56.62,176.1,176.04,5.679]
[1747263713634,56.62,176.09,176.04,5.679]
[1747263713834,56.62,176.09,176.03,56.62]
[1747263713835,5.6791,176.04,176.03,56.62]
[1747263714133,56.62,176.05,176.0,56.6]
[1747263714323,5.6799,176.02,176.0,56.6]
[1747263714630,56.62,176.05,176.0,56.6]
[1747263714936,5.68,176.01,176.0,56.6]
[1747263715432,6.45650922,176.03,175.97,56.6]
[1747263715633,5.681,175.98,175.97,56.6]
[1747263717735,63.07650922,176.0,175.93,56.6]
[1747263717930,63.07650922,176.0,175.93,62.2823]
[1747263718135,5.6812,175.98,175.93,56.6]
[1747263718639,56.62,176.0,175.95,5.6819]
[1747263719035,56.62,176.0,175.93,56.6]
[1747263719036,56.62,176.0,175.94,5.6822]
[1747263719638,5.6814,175.97,175.94,5.6822]
[1747263720842,56.62,176.0,175.93,56.6]
[1747263721037,56.62,176.0,175.93,113.22]
[1747263721241,4.0,176.04,175.93,113.22]
[1747263721437,5.6804,176.0,175.97,5.6811]
[1747263721633,5.6804,176.0,175.97,62.2811]
[1747263722281,5.6801,176.01,175.98,5.681]
[1747263722871,5.6798,176.02,175.99,5.6806]
[1747263724957,62.2994,176.03,176.0,5.6803]
[1747263725259,5.6794,176.03,176.0,5.6803]
[1747263726453,5.6792,176.04,176.01,5.68]
[1747263726662,5.6792,176.04,176.01,62.28]
[1747263727249,5.6794,176.03,176.01,56.6]
[1747263728447,5.6792,176.04,176.01,62.28]
[1747263730047,66.69520922,176.08,176.01,56.6]
[1747263730250,56.6,176.08,176.01,56.6]
[1747263730741,5.6787,176.05,176.02,5.6796]
[1747263731142,5.6785,176.06,176.03,5.6794]
[1747263731650,5.6809,175.99,175.96,56.6]
[1747263732447,5.6809,175.99,175.96,62.2816]
[1747263733346,56.6,176.05,175.96,56.6]
[1747263733646,56.6,176.06,175.96,56.6]
[1747263733949,56.6,176.06,176.01,5.6798]
[1747263734249,56.6,176.06,176.02,56.6]
[1747263734446,5.6788,176.05,176.02,56.6]
[1747263734647,56.6,176.06,176.02,56.6]
[1747263735049,10.45410951,176.1,176.02,56.6]
[1747263735255,56.6,176.07,176.02,56.6]
[1747263735547,5.6794,176.03,176.02,56.6]
[1747263736244,5.6805,176.0,175.99,56.6]
[1747263743852,5.6815,175.97,175.96,56.66]
[1747263749248,5.6815,175.97,175.93,3.8701]
[1747263749249,5.6824,175.94,175.92,491.08]
[1747263749555,5.6824,175.94,175.93,56.66]
[1747263752351,56.68,175.99,175.93,56.66]
[1747263752755,5.682,175.95,175.93,56.66]
[1747263753149,56.68,175.99,175.93,56.66]
[1747263753350,5.6812,175.98,175.95,5.6818]
[1747263754858,5.6814,175.97,175.95,5.6818]
[1747263755054,5.6814,175.97,175.94,5.6822]
[1747263756258,5.6811,175.98,175.95,5.6818]
[1747263757457,5.6814,175.97,175.95,5.6818]
[1747263759261,5.6811,175.98,175.95,5.6818]
[1747263759459,6.46129464,176.02,175.93,56.66]
[1747263759651,4.0,176.04,175.94,1.8673]
[1747263759856,5.68,176.01,175.94,1.8673]
[1747263760055,5.68,176.01,175.95,56.62]
[1747263760256,5.6795,176.03,175.95,56.62]
[1747263760461,60.62,176.04,175.95,56.62]
[1747263760660,56.62,176.04,175.99,5.6805]
[1747263760859,56.62,176.04,175.99,62.3405]
[1747263761361,56.62,176.04,175.99,56.66]
[1747263761561,5.68,176.02,175.99,56.66]
[1747263761863,5.68,176.02,175.99,62.3407]
[1747263762965,5.68,176.02,176.0,5.6803]
[1747263763364,5.6794,176.03,175.99,56.66]
[1747263763564,5.6794,176.03,176.0,5.6801]
[1747263765367,63.12129464,176.08,175.99,56.66]
[1747263765573,56.6,176.06,175.99,56.66]
[1747263766378,5.6792,176.04,176.01,5.6798]
[1747263768681,138.69358515,176.07,176.01,5.6798]
[1747263768682,5.6794,176.03,176.01,5.6798]
[1747263768882,138.69358515,176.07,176.0,5.6803]
[1747263769478,5.6795,176.03,176.0,5.6803]
[1747263770186,5.6792,176.04,176.01,5.68]
[1747263770379,138.69358515,176.07,176.01,5.68]
[1747263770680,5.6795,176.03,176.0,5.6802]
[1747263777086,138.69358515,176.07,175.99,56.66]
[1747263777289,6.46129464,176.05,175.99,56.66]
[1747263778386,5.6803,176.0,175.99,56.66]
[1747263778586,56.6,176.03,175.99,56.66]
[1747263779089,62.2797,176.03,176.0,5.6801]
[1747263779590,5.6797,176.03,176.0,5.6801]
[1747263779988,5.6798,176.02,176.0,5.6801]
[1747263780184,5.6798,176.02,175.99,62.3406]
[1747263780590,5.6801,176.01,175.99,62.3406]
[1747263780790,63.06129464,176.05,175.99,56.66]
[1747263781185,5.6803,176.0,175.99,56.66]
[1747263781491,63.06129464,176.05,175.99,56.66]
[1747263781688,56.6,176.05,175.99,56.66]
[1747263781988,5.6796,176.03,175.99,56.66]
[1747263782489,56.6,176.05,175.99,56.66]
[1747263783395,5.6803,176.0,175.99,56.66]
[1747263784994,5.6802,176.01,175.99,56.66]
[1747263785993,5.6798,176.02,175.99,62.3407]
[1747263786293,63.06129464,176.05,175.99,56.66]
[1747263786793,5.6802,176.01,175.99,56.66]
[1747263786996,56.6,176.05,175.99,56.66]
[1747263787792,5.6803,176.0,175.99,56.66]
[1747263795401,5.6813,175.97,175.96,56.58]
[1747263798908,56.58,176.01,175.96,56.58]
[1747263800008,5.6805,176.0,175.97,5.6812]
[1747263801211,5.6807,175.99,175.96,62.2615]
[1747263801512,56.58,176.01,175.96,56.58]
[1747263802014,5.6812,175.98,175.96,56.58]
[1747263802612,5.6812,175.98,175.96,62.2616]
[1747263803207,56.58,176.01,175.97,5.6812]
[1747263803413,56.58,176.01,175.96,56.58]
[1747263803716,5.6807,176.0,175.96,56.58]
[1747263803909,5.6807,176.0,175.97,5.6812]
[1747263805709,5.6807,175.99,175.97,5.6812]
[1747263805912,56.58,176.01,175.96,62.2615]
[1747263807811,5.6809,175.99,175.96,62.2615]
[1747263808012,5.6809,175.99,175.97,5.6813]
[1747263810316,5.6809,175.99,175.96,62.2615]
[1747263810518,1.9442,176.04,175.96,56.58]
[1747263810719,4.0,176.05,175.96,56.58]
[1747263811019,4.0,176.05,176.01,5.6798]
[1747263811312,5.6793,176.04,176.01,62.2598]
[1747263811613,60.6,176.05,176.01,56.58]
[1747263811817,5.6795,176.03,176.01,56.58]
[1747263812513,5.6792,176.04,176.01,56.58]
[1747263813121,5.6792,176.04,176.01,62.26]
[1747263813715,66.2788,176.05,176.02,5.6797]
[1747263813915,60.6,176.05,176.01,56.58]
[1747263815619,5.6791,176.04,176.01,62.2599]
[1747263816619,4.0,176.05,176.01,56.58]
[1747263817119,4.0,176.05,176.03,5.6794]
[1747263817320,5.6786,176.06,176.03,5.6794]
[1747263819122,82.09358515,176.07,176.01,56.58]
[1747263819416,82.09358515,176.07,176.01,62.2599]
[1747263819717,82.09358515,176.07,176.01,56.58]
[1747263820114,5.6784,176.06,176.02,5.6795]
[1747263820318,56.58,176.08,176.02,5.6795]
[1747263820617,5.6791,176.04,176.01,62.2599]
[1747263820818,6.45881683,176.09,176.01,56.58]
[1747263821012,56.58,176.08,176.01,56.58]
[1747263822020,5.6784,176.07,176.03,5.6791]
[1747263823022,5.6784,176.07,176.04,5.679]
[1747263823923,5.6779,176.08,176.05,5.6787]
[1747263824123,62.2579,176.08,176.05,5.6787]
[1747263824525,5.6779,176.08,176.05,5.6787]
[1747263825120,5.6779,176.08,176.06,5.6783]
[1747263825524,5.6779,176.08,176.01,56.58]
[1747263825823,5.6779,176.08,176.02,56.58]
[1747263826021,5.6779,176.08,176.04,5.6789]
[1747263826419,5.6782,176.07,176.04,5.6789]
[1747263828419,4.0,176.11,176.06,5.6784]
[1747263828622,56.58,176.15,176.07,56.58]
[1747263828824,56.58,176.15,176.08,56.58]
[1747263829724,6.45881683,176.13,176.05,56.56]
[1747263830525,5.6784,176.06,176.05,56.56]
[1747263832727,5.6791,176.04,176.03,490.84]
[1747263836827,5.6789,176.05,176.03,490.84]
[1747263837230,6.45881683,176.1,176.03,490.84]
[1747263837425,56.56,176.09,176.04,5.679]
[1747263837627,56.56,176.09,176.03,490.84]
[1747263837824,5.6786,176.06,176.03,496.5192]
[1747263839223,5.6788,176.05,176.03,496.5192]
[1747263839427,5.6788,176.05,176.03,490.84]
[1747263840932,5.6791,176.04,176.03,490.84]
[1747263843031,5.6788,176.05,176.03,490.84]
[1747263844637,5.6788,176.05,176.03,496.5192]
[1747263845039,5.6791,176.04,176.03,490.84]
[1747263845537,5.6794,176.03,176.02,56.56]
[1747263847843,62.239,176.05,176.02,56.56]
[1747263848343,5.6791,176.04,176.02,62.2395]
[1747263851541,5.6788,176.05,176.03,5.6793]
[1747263851843,56.56,176.06,176.02,56.56]
[1747263852141,5.6794,176.03,176.02,56.56]
[1747263866962,5.6788,176.05,176.02,56.56]
[1747263867160,62.2388,176.05,176.02,56.56]
[1747263867459,62.2388,176.05,176.02,62.2395]
[1747263867962,5.6791,176.04,176.02,62.2395]
[1747263868460,5.6791,176.04,176.02,56.56]
[1747263870260,5.6794,176.03,176.02,56.56]
[1747263870462,56.56,176.06,176.02,56.56]
[1747263871161,5.6792,176.04,176.02,56.56]
[1747263871756,56.56,176.06,176.02,56.56]
[1747263871956,5.6794,176.03,176.02,56.56]
[1747263873161,5.6792,176.04,176.02,56.56]
[1747263874160,5.6792,176.04,176.02,62.2397]
[1747263876556,5.6794,176.03,176.02,56.56]
[1747263876763,4.13074527,176.05,176.02,56.56]
[1747263877660,5.6794,176.03,176.02,56.56]
[1747263879662,5.6794,176.03,176.01,62.22]
[1747263881069,5.6797,176.02,176.01,56.54]
[1747263881370,56.54,176.02,175.98,56.54]
[1747263881561,9.81157145,175.99,175.98,56.54]
[1747263881868,4.13410102,175.99,175.95,56.54]
[1747263882259,5.6818,175.96,175.95,56.54]
[1747263886073,5.6831,175.92,175.89,1.9108]
[1747263886268,5.6831,175.92,175.9,56.54]
[1747263887871,5.6833,175.91,175.9,56.54]
[1747263890266,5.6839,175.9,175.87,62.2445]
[1747263891170,56.56,175.9,175.87,56.56]
[1747263891967,5.6841,175.89,175.87,56.56]
[1747263892771,5.6842,175.88,175.87,56.56]
[1747263893475,5.684,175.89,175.87,56.56]
[1747263895071,5.6835,175.91,175.88,5.6839]
[1747263895272,56.56,175.9,175.87,56.56]
[1747263895676,62.2438,175.9,175.87,62.2444]
[1747263902979,5.6838,175.9,175.87,62.2444]
[1747263903280,62.2433,175.91,175.88,5.6842]
[1747263903678,5.6833,175.91,175.88,5.6842]
[1747263903882,5.6827,175.93,175.89,5.6839]
[1747263904182,56.56,175.94,175.89,5.6839]
[1747263904377,5.6828,175.93,175.89,5.6839]
[1747263904570,56.56,175.94,175.89,5.6839]
[1747263904978,56.56,175.94,175.87,56.56]
[1747263905481,9.82069229,175.91,175.88,5.6841]
[1747263905681,4.13719229,175.93,175.87,56.56]
[1747263905881,4.13719229,175.93,175.87,58.512]
[1747263906186,9.81979229,175.93,175.9,5.6835]
[1747263906388,4.13719229,175.95,175.87,58.512]
[1747263906579,60.69719229,175.95,175.88,5.95969229]
[1747263906780,5.6823,175.94,175.91,5.683]
[1747263907086,5.6823,175.94,175.91,62.243]
[1747263912993,56.56,175.96,175.91,56.56]
[1747263913289,63.02151501,175.96,175.91,56.56]
[1747263914283,5.6829,175.92,175.91,56.56]
[1747263914489,6.46151501,175.93,175.87,56.56]
[1747263914785,56.56,175.92,175.87,56.56]
[1747263915281,5.6834,175.91,175.88,5.6842]
[1747263915887,5.6836,175.9,175.87,62.2444]
[1747263917190,5.684,175.89,175.87,56.56]
[1747263919089,5.6842,175.88,175.87,56.56]
[1747263921481,56.56,175.92,175.85,490.86]
[1747263921688,5.6848,175.87,175.85,490.86]
[1747263921887,6.46151501,175.93,175.84,56.56]
[1747263922093,5.6851,175.86,175.84,56.56]
[1747263922396,5.6851,175.86,175.82,3.6398]
[1747263922587,5.6851,175.86,175.83,5.6858]
[1747263922892,5.6852,175.85,175.82,1.8134]
[1747263923092,56.56,175.88,175.8,62.2466]
[1747263923393,56.56,175.88,175.8,56.56]
[1747263923693,5.6857,175.84,175.81,5.6865]
[1747263923892,6.46151501,175.87,175.8,56.56]
[1747263924594,5.6857,175.84,175.8,62.2466]
[1747263925296,5.6859,175.83,175.8,56.56]
[1747263926192,5.6862,175.82,175.8,56.56]
[1747263926900,5.6865,175.81,175.8,56.56]
[1747263927196,5.6865,175.81,175.77,60.2514]
[1747263927396,63.02151501,175.84,175.77,56.56]
[1747263927896,56.56,175.84,175.82,5.6859]
[1747263929195,62.2456,175.84,175.81,62.2464]
[1747263929495,56.56,175.84,175.81,56.56]
[1747263929896,5.6861,175.83,175.81,56.56]
[1747263930696,5.6862,175.82,175.81,56.56]
[1747263932499,56.56,175.84,175.78,56.56]
[1747263933797,62.2456,175.84,175.78,56.56]
[1747263934002,56.56,175.87,175.78,56.56]
[1747263934202,56.56,175.87,175.79,5.5829]
[1747263934504,5.6851,175.86,175.79,5.5829]
[1747263934993,5.6853,175.85,175.79,5.5829]
[1747263935602,5.6853,175.85,175.82,5.686]
[1747263935802,5.6853,175.85,175.82,62.246]
[1747263936004,63.02151501,175.87,175.82,56.56]
[1747263937103,5.6857,175.84,175.82,56.56]
[1747263937999,4.0,175.89,175.82,56.56]
[1747263938404,5.6843,175.88,175.85,5.6849]
[1747263938706,56.56,175.91,175.86,56.56]
[1747263938911,56.56,175.91,175.86,5.6848]
[1747263939203,56.56,175.91,175.85,56.56]
[1747263939900,5.6842,175.89,175.85,62.245]
[1747263940101,56.56,175.91,175.85,56.56]
[1747263940501,5.6838,175.9,175.87,5.6845]
[1747263941708,5.6839,175.89,175.86,5.6847]
[1747263941905,56.56,175.92,175.86,5.6847]
[1747263942208,56.56,175.92,175.85,56.56]
[1747263942706,5.6849,175.86,175.85,56.56]
[1747263942904,56.56,175.92,175.85,56.56]
[1747263944409,5.684,175.89,175.86,5.6847]
[1747263947908,5.6837,175.9,175.87,5.6845]
[1747263948506,4.0,175.94,175.85,56.56]
[1747263948711,4.0,175.94,175.86,5.4421]
[1747263949008,4.0,175.94,175.93,5.6826]
[1747263949212,5.6818,175.96,175.93,5.6826]
[1747263950313,5.6814,175.97,175.94,5.6823]
[1747263950508,56.54,175.99,175.92,56.56]
[1747263950816,5.6812,175.98,175.94,5.6821]
[1747263951013,56.54,175.99,175.94,5.6821]
[1747263952615,5.6814,175.97,175.94,5.6821]
[1747263954511,56.54,175.99,175.92,56.56]
[1747263954716,6.46151501,175.98,175.92,56.56]
[1747263955218,56.54,175.99,175.92,56.56]
[1747263955618,5.6819,175.96,175.92,62.2429]
[1747263956818,5.682,175.95,175.92,56.56]
[1747263959320,5.6825,175.94,175.92,56.56]
[1747263963227,5.6821,175.95,175.92,56.56]
[1747263963522,5.6821,175.95,175.92,62.2429]
[1747263963826,5.6821,175.95,175.92,56.56]
[1747263966229,5.6821,175.95,175.92,62.2429]
[1747263967520,63.94151501,175.95,175.87,548.94]
[1747263967925,5.6839,175.89,175.87,548.94]
[1747263968730,63.94151501,175.95,175.87,548.94]
[1747263968925,57.48,175.95,175.87,548.94]
[1747263969632,5.683,175.92,175.89,5.6837]
[1747263970025,57.48,175.95,175.89,5.6837]
[1747263970830,4.0,175.98,175.88,57.72]
[1747263971131,5.6822,175.95,175.91,5.683]
[1747263971331,5.6822,175.95,175.92,57.7]
[1747263971631,5.6817,175.96,175.92,57.7]
[1747263972232,5.6821,175.95,175.92,63.3828]
[1747263973535,5.6823,175.94,175.92,57.7]
[1747263973724,61.8,175.98,175.92,57.7]
[1747263974035,5.6821,175.95,175.92,57.7]
[1747263974335,5.6821,175.95,175.92,63.3828]
[1747263976838,61.8,175.98,175.92,57.7]
[1747263977532,5.6822,175.95,175.92,57.7]
[1747263978039,5.6822,175.95,175.92,63.3829]
[1747263979035,61.8,175.98,175.92,57.7]
[1747263980334,4.0,175.98,175.92,57.7]
[1747263981139,6.46151501,176.01,175.92,57.7]
[1747263981339,64.10151501,176.01,175.92,57.7]
[1747263983139,5.6821,175.95,175.92,63.3829]
[1747263986946,5.6818,175.96,175.93,5.6826]
[1747263987543,64.10151501,176.01,175.93,5.6826]
[1747263988843,5.6818,175.96,175.93,5.6826]
[1747263990044,64.10151501,176.01,175.93,5.6826]
[1747263990942,5.6819,175.96,175.93,5.6826]
[1747263991245,64.10151501,176.01,175.92,63.3828]
[1747263991745,5.6819,175.96,175.92,63.3828]
[1747263991939,5.6819,175.96,175.93,5.6826]
[1747263993045,5.6815,175.97,175.94,5.6822]
[1747263993241,5.6815,175.97,175.92,57.7]
[1747263993646,5.6815,175.97,175.94,5.6821]
[1747264002450,5.6815,175.97,175.95,5.6819]
[1747264002646,5.6811,175.98,175.95,5.6819]
[1747264002949,57.42,176.0,175.95,5.6819]
[1747264004352,57.42,176.0,175.93,5.6823]
[1747264004653,5.6816,175.97,175.93,5.6823]
[1747264005745,57.42,176.0,175.92,57.7]
[1747264006652,5.682,175.95,175.92,63.3827]
[1747264008455,5.6823,175.94,175.92,63.3827]
[1747264008854,5.6823,175.94,175.92,57.7]
[1747264009952,5.6826,175.93,175.92,57.7]
[1747264016257,11.3592,176.03,175.92,57.7]
[1747264016457,4.0,176.04,175.92,57.7]
[1747264016458,63.62151501,176.02,175.92,57.7]
[1747264016858,5.6812,175.98,175.92,57.7]
[1747264017158,5.6812,175.98,175.92,61.4306]
[1747264017355,5.6812,175.98,175.95,5.6818]
[1747264017556,5.6812,175.98,175.96,57.2]
[1747264020367,5.6812,175.98,175.96,57.16697467]
[1747264021663,63.62151501,176.02,175.96,62.84847467]
[1747264022268,5.6809,175.99,175.96,62.84847467]
[1747264023270,5.6805,176.0,175.97,5.6813]
[1747264023463,61.16,176.04,175.96,57.16697467]
[1747264023969,5.6799,176.02,175.98,5.6807]
[1747264026371,5.6799,176.02,175.96,57.16697467]
[1747264026567,5.6795,176.03,175.96,57.16697467]
[1747264026773,5.6795,176.03,175.96,114.26697467]
[1747264026972,1.8146,176.09,175.97,1.8224]
[1747264027170,10.46151501,176.1,175.98,3.5293]
[1747264027371,57.08,176.09,176.03,5.6791]
[1747264027670,5.6783,176.07,176.03,62.8591]
[1747264027874,57.16,176.09,176.03,62.8591]
[1747264028376,10.46151501,176.1,176.03,62.8591]
[1747264028575,67.62151501,176.1,176.03,62.8591]
[1747264028876,57.14,176.09,176.03,62.8591]
[1747264029577,5.6784,176.06,176.03,62.8591]
[1747264046386,4.0,176.1,176.03,62.8591]
[1747264046387,4.0,176.1,176.03,61.30957968]
[1747264046591,8.12957968,176.1,176.03,61.30957968]
[1747264046993,5.6777,176.09,176.05,5.6785]
[1747264047188,5.6777,176.09,176.03,61.30957968]
[1747264047491,5.6777,176.09,176.05,5.6784]
[1747264047793,5.6777,176.09,176.03,61.30957968]
[1747264047998,57.16,176.16,176.05,4.12957968]
[1747264048291,4.12957968,176.13,176.05,4.12957968]
[1747264048492,4.12957968,176.13,176.07,4.12957968]
[1747264048691,4.12957968,176.13,176.08,57.0]
[1747264048987,57.0,176.14,176.08,57.0]
[1747264049494,4.12957968,176.15,176.08,57.0]
[1747264049694,5.6762,176.13,176.1,5.6771]
[1747264051298,4.0,176.17,176.08,57.0]
[1747264051594,4.0,176.17,176.08,113.96]
[1747264051784,9.675,176.17,176.13,5.6759]
[1747264051986,5.675,176.17,176.13,62.6759]
[1747264052196,63.40730744,176.19,176.13,62.6759]
[1747264052698,5.6752,176.16,176.13,57.0]
[1747264052897,8.25590744,176.22,176.13,57.0]
[1747264053097,56.96,176.21,176.13,57.0]
[1747264053301,5.6748,176.18,176.14,5.6756]
[1747264053597,56.96,176.21,176.14,5.6756]
[1747264053795,5.6749,176.17,176.13,57.0]
[1747264054700,5.6749,176.17,176.13,62.6761]
[1747264055400,56.96,176.21,176.13,57.0]
[1747264055998,1.8086,176.22,176.13,57.0]
[1747264056196,63.46730744,176.25,176.13,57.0]
[1747264056392,63.46730744,176.25,176.13,62.6298]
[1747264056590,5.6751,176.17,176.13,68.3059]
[1747264057392,57.02,176.21,176.13,57.0]
[1747264058199,57.02,176.21,176.13,62.676]
[1747264058593,9.5753,176.27,176.13,57.0]
[1747264058795,5.6745,176.19,176.15,5.6755]
[1747264059299,5.674,176.2,176.16,5.6752]
[1747264059502,57.32,176.24,176.17,56.98]
[1747264059694,57.32,176.24,176.18,56.98]
[1747264060602,5.6738,176.21,176.18,56.98]
[1747264060998,57.32,176.24,176.18,56.98]
[1747264062302,4.0,176.26,176.18,62.6545]
[1747264062700,61.26,176.26,176.18,62.6545]
[1747264063003,5.6735,176.22,176.18,62.6545]
[1747264063207,61.26,176.26,176.18,62.6545]
[1747264063398,61.26,176.26,176.18,56.98]
[1747264063598,5.6739,176.21,176.18,56.98]
[1747264065205,5.674,176.2,176.18,56.98]
[1747264066108,5.6736,176.21,176.18,56.98]
[1747264066502,5.6736,176.21,176.18,62.6545]
[1747264066907,5.6739,176.2,176.18,56.98]
[1747264067706,5.6737,176.21,176.18,56.98]
[1747264068510,57.2,176.25,176.18,56.98]
[1747264069109,5.6738,176.21,176.18,56.98]
[1747264069303,57.2,176.25,176.18,56.98]
[1747264070609,5.6739,176.2,176.18,56.98]
[1747264070908,6.44730744,176.24,176.18,56.98]
[1747264071404,5.6741,176.2,176.18,56.98]
[1747264071909,5.6742,176.19,176.18,56.98]